bitfinex-derivatives/quotes_BTCF0:USTF0_20250211
["timestamp","ask_amount","ask_price","bid_price","bid_amount"]
[1739289568759,0.18751917,96987.0,96972.0,0.07528057]
[1739289568957,0.18751917,96987.0,96977.0,0.12234262]
[1739289569159,0.18751917,96987.0,96975.0,0.2062271]
[1739289569160,0.39372227,96987.0,96975.0,0.2062271]
[1739289570451,0.39672227,96987.0,96975.0,0.2062271]
[1739289570649,0.2423031,96987.0,96975.0,0.2062271]
[1739289571752,0.0361,96987.0,96976.0,0.2062247]
[1739289572261,0.0351,96987.0,96978.0,0.5670202]
[1739289572461,0.002,96987.0,96984.0,0.2062074]
[1739289572964,0.003,96987.0,96984.0,0.2062074]
[1739289573358,0.003,96987.0,96979.0,0.03]
[1739289573558,0.003,96987.0,96986.0,0.5670052]
[1739289574357,0.004,96987.0,96986.0,0.5670052]
[1739289575173,0.001,96987.0,96986.0,0.5670052]
[1739289575359,0.01,96987.0,96986.0,0.5670052]
[1739289575561,0.009,96987.0,96986.0,0.5670052]
[1739289575860,0.00015459,96995.0,96986.0,0.3608]
[1739289576057,0.00015459,96995.0,96994.0,0.5669881]
[1739289576263,0.18467044,97000.0,96994.0,0.5669881]
[1739289576264,0.18467044,97000.0,96999.0,0.2061775]
[1739289577358,0.00154675,97016.0,97011.0,0.2061514]
[1739289577559,0.00154675,97016.0,97015.0,0.3608]
[1739289578260,0.00154675,97016.0,97015.0,0.3908]
[1739289578765,0.00854675,97016.0,97015.0,0.3908]
[1739289579355,0.02354675,97016.0,97015.0,0.3908]
[1739289579667,0.02354675,97016.0,97015.0,0.40233241]
[1739289584869,0.02354675,97016.0,97015.0,0.60847591]
[1739289586273,0.00015468,97023.0,97015.0,0.60847591]
[1739289586274,0.00015468,97023.0,97022.0,0.2061286]
[1739289587371,0.00715468,97023.0,97022.0,0.2061286]
[1739289588166,0.00715468,97023.0,97022.0,0.2071286]
[1739289588473,0.02215468,97023.0,97022.0,0.2071286]
[1739289593568,0.0307,97049.0,97022.0,0.3618]
[1739289593776,0.0307,97049.0,97040.0,0.3608]
[1739289594672,0.0307,97049.0,97041.0,0.2060881]
[1739289594974,0.0527,97049.0,97041.0,0.2060881]
[1739289595669,0.0527,97049.0,97040.0,0.3618]
[1739289596764,0.0527,97049.0,97040.0,0.5678904]
[1739289596970,0.0527,97049.0,97041.0,0.001]
[1739289596971,0.0467,97049.0,97041.0,0.001]
[1739289597564,0.0357,97049.0,97041.0,0.001]
[1739289598375,0.005,97049.0,97048.0,0.3608]
[1739289598570,0.005,97049.0,97048.0,0.5668734]
[1739289599376,0.005,97049.0,97048.0,0.3608]
[1739289600194,0.005,97049.0,97048.0,0.5668734]
[1739289600689,0.031,97050.0,97048.0,0.3608]
[1739289600871,0.01,97049.0,97048.0,0.3628]
[1739289601373,0.01,97049.0,97048.0,0.5688734]
[1739289601569,0.0001546,97054.0,97053.0,0.2060628]
[1739289602278,0.0328,97068.0,97053.0,0.3608]
[1739289602477,0.0328,97068.0,97065.0,0.3608]
[1739289602864,0.2388328,97068.0,97065.0,0.3608]
[1739289603275,0.2388328,97068.0,97055.0,0.2060579]
[1739289604273,0.2388328,97068.0,97065.0,0.001]
[1739289604480,0.2408328,97068.0,97065.0,0.001]
[1739289604671,0.2060345,97067.0,97065.0,0.001]
[1739289604974,0.0358,97068.0,97065.0,0.001]
[1739289605173,0.001,97068.0,97067.0,0.2060331]
[1739289605772,0.0001546,97071.0,97067.0,0.2060331]
[1739289605977,0.0001546,97071.0,97062.0,0.3608]
[1739289605978,0.0001546,97071.0,97065.0,0.002]
[1739289606677,0.0302546,97071.0,97065.0,0.002]
[1739289607473,0.0302546,97071.0,97067.0,0.001]
[1739289607975,0.0302546,97071.0,97065.0,0.001]
[1739289608176,0.0302546,97071.0,97065.0,0.003]
[1739289608376,0.0302546,97071.0,97067.0,0.012]
[1739289608776,0.206031,97068.0,97067.0,0.012]
[1739289609172,0.206031,97068.0,97065.0,0.002]
[1739289609681,0.0324,97067.0,97065.0,0.002]
[1739289609980,0.2384334,97067.0,97065.0,0.002]
[1739289610283,0.2060393,97065.0,97062.0,0.3608]
[1739289610476,0.0324,97067.0,97055.0,0.01193559]
[1739289610678,0.0324,97067.0,97051.0,0.2060663]
[1739289610879,0.2060418,97063.0,97051.0,0.2060663]
[1739289611073,0.2060418,97063.0,97052.0,0.2062193]
[1739289611580,0.2060447,97062.0,97055.0,0.001]
[1739289612077,0.0324,97067.0,97052.0,0.0001546]
[1739289612271,0.3932,97067.0,97052.0,0.0001546]
[1739289612469,0.2060615,97054.0,97052.0,0.0001546]
[1739289612669,0.0636,97053.0,97052.0,0.0001546]
[1739289613076,0.0636,97053.0,97038.0,0.3608]
[1739289613272,0.2060802,97045.0,97038.0,0.3608]
[1739289613480,0.0636,97053.0,97037.0,0.01121291]
[1739289613481,0.0332,97044.0,97037.0,0.01121291]
[1739289613673,0.0332,97044.0,97035.0,0.12236109]
[1739289613885,0.206084,97043.0,97035.0,0.12236109]
[1739289614083,0.2060901,97041.0,97035.0,0.12236109]
[1739289614778,0.2040901,97041.0,97035.0,0.12236109]
[1739289614980,0.0332,97044.0,97035.0,0.12236109]
[1739289614981,0.2060906,97040.0,97035.0,0.12236109]
[1739289615686,0.2060934,97039.0,97035.0,0.12236109]
[1739289615871,0.2060934,97039.0,97032.0,0.2061069]
[1739289616080,0.002,97041.0,97029.0,0.48463569]
[1739289616283,0.002,97041.0,97037.0,0.18450884]
[1739289616284,0.2080889,97041.0,97037.0,0.18450884]
[1739289616592,0.002,97041.0,97037.0,0.18450884]
[1739289616795,0.2060947,97038.0,97037.0,0.18450884]
[1739289618593,0.2110947,97038.0,97037.0,0.18550884]
[1739289619890,0.2110947,97038.0,97037.0,0.001]
[1739289620188,0.5718947,97038.0,97037.0,0.001]
[1739289621480,0.3658,97038.0,97029.0,0.12251569]
[1739289621689,0.2061103,97031.0,97029.0,0.12251569]
[1739289621987,0.0317,97030.0,97029.0,0.0001546]
[1739289622189,0.0622,97030.0,97029.0,0.0001546]
[1739289622778,0.2683116,97030.0,97029.0,0.0001546]
[1739289623891,0.6291116,97030.0,97029.0,0.0001546]
[1739289624890,0.2061308,97021.0,97020.0,0.12236109]
[1739289625085,0.3608,97022.0,97011.0,0.12236109]
[1739289625280,0.2061476,97014.0,97011.0,0.12236109]
[1739289625477,0.2061476,97014.0,97009.0,0.01133396]
[1739289625787,0.2061476,97014.0,97005.0,0.18450884]
[1739289626090,0.2061484,97013.0,97005.0,0.18450884]
[1739289626491,0.2061484,97013.0,97005.0,0.19568801]
[1739289626695,0.0001546,97019.0,97005.0,0.19568801]
[1739289627393,0.0001546,97019.0,97009.0,0.12236109]
[1739289627597,0.2061541,97010.0,97009.0,0.12236109]
[1739289627889,0.2061604,97008.0,97005.0,0.19568801]
[1739289628286,0.2061604,97008.0,97005.0,0.20468801]
[1739289628478,0.0306,97009.0,97005.0,0.20468801]
[1739289628686,0.2061626,97006.0,97005.0,0.20868801]
[1739289629183,0.0306,97009.0,97005.0,0.20868801]
[1739289629690,0.2367564,97009.0,97005.0,0.20868801]
[1739289629894,0.2367564,97009.0,97005.0,0.02417917]
[1739289630501,0.3608,97014.0,97005.0,0.02417917]
[1739289631390,0.3608,97014.0,97005.0,0.02017917]
[1739289631597,0.3608,97014.0,97005.0,0.02417917]
[1739289631796,0.3608,97014.0,97005.0,0.01517917]
[1739289631998,0.3608,97014.0,97005.0,0.02017917]
[1739289632205,0.2061565,97009.0,97005.0,0.02417917]
[1739289632684,0.2061626,97006.0,97005.0,0.02417917]
[1739289633393,0.5669626,97006.0,97005.0,0.02417917]
[1739289633696,0.2061733,97001.0,97000.0,0.0001546]
[1739289634289,0.2061873,96995.0,96980.0,0.30686993]
[1739289634488,0.3608,96991.0,96985.0,0.12236109]
[1739289634692,0.3568,96991.0,96985.0,0.12236109]
[1739289635291,0.2062052,96986.0,96985.0,0.12236109]
[1739289635491,0.3568,96991.0,96978.0,0.0309]
[1739289635492,0.2062074,96985.0,96978.0,0.0309]
[1739289635801,0.1952074,96985.0,96978.0,0.0309]
[1739289636397,0.1922074,96985.0,96978.0,0.0309]
[1739289636699,0.2062117,96983.0,96978.0,0.0420722]
[1739289636903,0.2062183,96980.0,96978.0,0.0420722]
[1739289637597,0.3568,96991.0,96978.0,0.0420722]
[1739289637896,0.20622,96979.0,96978.0,0.0420722]
[1739289638499,0.20622,96979.0,96978.0,0.0460722]
[1739289638896,0.20622,96979.0,96978.0,0.0420722]
[1739289639200,0.20722,96979.0,96978.0,0.0420722]
[1739289639597,0.001,96979.0,96978.0,0.0420722]
[1739289640703,0.001,96979.0,96978.0,0.2482944]
[1739289640905,0.001,96979.0,96978.0,0.0420722]
[1739289641400,0.20722,96979.0,96978.0,0.0420722]
[1739289641699,0.21122,96979.0,96978.0,0.0121722]
[1739289648304,0.005,96979.0,96978.0,0.2183944]
[1739289648702,0.005,96979.0,96978.0,0.0121722]
[1739289649813,0.005,96979.0,96978.0,0.2183944]
[1739289650213,0.005,96979.0,96978.0,0.0121722]
[1739289652908,0.21122,96979.0,96978.0,0.0121722]
[1739289657218,0.005,96979.0,96978.0,0.0121722]
[1739289659100,0.005,96979.0,96978.0,0.2183944]
[1739289668725,0.005,96979.0,96978.0,0.2072222]
[1739289669024,0.2062221,96978.0,96969.0,0.24540864]
[1739289669223,0.3608,96970.0,96969.0,0.45164994]
[1739289670524,0.3608,96970.0,96969.0,0.45464994]
[1739289670913,0.3608,96970.0,96969.0,0.45664994]
[1739289671214,0.3608,96970.0,96969.0,0.2112413]
[1739289672021,0.3608,96970.0,96969.0,0.2092413]
[1739289672022,0.3628,96970.0,96969.0,0.2092413]
[1739289672411,0.3688,96970.0,96969.0,0.2062413]
[1739289673220,0.3628,96970.0,96969.0,0.2062413]
[1739289673416,0.3768,96970.0,96969.0,0.2062413]
[1739289673922,0.3748,96970.0,96969.0,0.2062413]
[1739289674126,0.3808,96970.0,96969.0,0.2062413]
[1739289684837,0.15423185,96976.0,96975.0,0.2062286]
[1739289685723,0.18459758,96985.0,96984.0,0.2062094]
[1739289685927,0.02500168,96985.0,96984.0,0.5670094]
[1739289686126,0.00154721,96990.0,96989.0,0.2061988]
[1739289686326,0.43224,97009.0,97003.0,0.206169]
[1739289686740,0.3608,97009.0,97003.0,0.206169]
[1739289687231,0.3608,97009.0,96995.0,0.3608]
[1739289687431,0.3608,97009.0,97008.0,0.2061584]
[1739289688940,0.3608,97009.0,97008.0,0.2174509]
[1739289689631,0.3668,97009.0,97008.0,0.2184509]
[1739289691136,0.3818,97009.0,97008.0,0.2194509]
[1739289693240,0.3818,97009.0,97008.0,0.002]
[1739289695636,0.6818,97009.0,96994.0,0.00015468]
[1739289695941,0.566986,96995.0,96994.0,0.00015468]
[1739289696139,0.638386,96995.0,96994.0,0.00015468]
[1739289696744,0.638386,96995.0,96994.0,0.00115468]
[1739289697245,0.644386,96995.0,96994.0,0.00215468]
[1739289697439,0.644386,96995.0,96994.0,0.00115468]
[1739289697646,0.4532,96995.0,96982.0,0.2062127]
[1739289697940,0.3608,96983.0,96982.0,0.2062127]
[1739289698148,0.3608,96983.0,96976.0,0.0327]
[1739289698149,0.2062181,96980.0,96976.0,0.2062247]
[1739289698643,0.3608,96981.0,96970.0,0.12236109]
[1739289698850,0.0302,96979.0,96978.0,0.2062211]
[1739289700044,0.1056,96979.0,96978.0,0.2062211]
[1739289700740,0.2062237,96978.0,96973.0,0.2062324]
[1739289700947,0.2062237,96978.0,96968.0,0.01102465]
[1739289701137,0.2062237,96978.0,96968.0,0.13338574]
[1739289701341,0.3608,96970.0,96969.0,0.2062413]
[1739289701649,0.3598,96970.0,96969.0,0.2062413]
[1739289703955,0.3608,96970.0,96969.0,0.2062413]
[1739289704341,0.3628,96970.0,96969.0,0.2062413]
[1739289704851,0.003,96970.0,96969.0,0.2062413]
[1739289707052,0.004,96970.0,96969.0,0.2062413]
[1739289707653,0.003,96970.0,96969.0,0.2062413]
[1739289707951,0.01,96970.0,96969.0,0.2072413]
[1739289709653,0.007,96970.0,96969.0,0.2072413]
[1739289709853,0.002,96970.0,96969.0,0.2062413]
[1739289710043,0.007,96970.0,96969.0,0.2072413]
[1739289710746,0.002,96970.0,96969.0,0.2062413]
[1739289710950,0.008,96970.0,96969.0,0.2072413]
[1739289712840,0.009,96970.0,96969.0,0.2072413]
[1739289713642,0.006,96970.0,96969.0,0.001]
[1739289713855,0.00015468,96988.0,96987.0,0.206203]
[1739289714556,8e-08,96988.0,96987.0,0.206203]
[1739289716555,0.00500008,96988.0,96987.0,0.207203]
[1739289716957,0.01900008,96988.0,96987.0,0.208203]
[1739289717653,0.00500008,96988.0,96987.0,0.208203]
[1739289717856,0.01700008,96988.0,96987.0,0.208203]
[1739289718754,0.01700008,96988.0,96987.0,0.21948681]
[1739289722160,8e-08,96988.0,96987.0,0.21948681]
[1739289722362,8e-08,96999.0,96998.0,0.2061796]
[1739289722559,8e-08,96999.0,96998.0,0.5669796]
[1739289723653,8e-08,96999.0,96998.0,0.5689796]
[1739289723654,0.02000008,96999.0,96998.0,0.5689796]
[1739289725662,0.02000008,96999.0,96998.0,0.57992501]
[1739289735166,0.02000008,96999.0,96998.0,0.21912501]
[1739289736170,0.38080008,96999.0,96998.0,0.21912501]
[1739289745180,0.38080008,96999.0,96998.0,0.23027734]
[1739289746179,0.38080008,96999.0,96998.0,0.01315233]
[1739289746474,0.20618,96998.0,96988.0,0.01085063]
[1739289746681,0.3608,96989.0,96988.0,0.2062009]
[1739289748092,0.3608,96989.0,96988.0,0.2072009]
[1739289748790,0.3618,96989.0,96988.0,0.2082009]
[1739289750283,0.3698,96989.0,96988.0,0.21941586]
[1739289750493,0.3698,96989.0,96988.0,0.2082009]
[1739289750684,0.6473188,96989.0,96988.0,0.002]
[1739289751691,0.6473188,96989.0,96988.0,0.2072009]
[1739289751889,0.6473188,96989.0,96988.0,0.2082009]
[1739289753495,0.6473188,96989.0,96988.0,0.002]
[1739289753793,0.6473188,96989.0,96978.0,0.00015468]
[1739289753794,0.2062011,96988.0,96978.0,0.20637618]
[1739289754093,0.3598,96979.0,96978.0,0.20637618]
[1739289754287,0.3903,96979.0,96978.0,0.20637618]
[1739289755488,0.59652,96979.0,96978.0,0.00015468]
[1739289755793,0.70104102,96979.0,96955.0,0.01092686]
[1739289755988,0.2062753,96953.0,96952.0,0.24540864]
[1739289756397,0.3608,96956.0,96953.0,0.2062735]
[1739289756398,0.0328,96955.0,96953.0,0.2062735]
[1739289757588,0.0408,96955.0,96953.0,0.2072735]
[1739289758401,0.0408,96955.0,96930.0,0.00136]
[1739289758589,0.5671157,96934.0,96931.0,0.2063218]
[1739289758791,0.43216,96934.0,96933.0,0.57443086]
[1739289759085,0.43116,96934.0,96933.0,0.57443086]
[1739289759298,0.43116,96934.0,96933.0,0.2063179]
[1739289759696,0.43416,96934.0,96933.0,0.2063179]
[1739289760393,0.43916,96934.0,96933.0,0.2063179]
[1739289762301,0.43916,96934.0,96933.0,0.2073179]
[1739289762302,0.44116,96934.0,96933.0,0.2073179]
[1739289763197,0.3798,96934.0,96933.0,0.2083179]
[1739289763398,0.02,96934.0,96933.0,0.2083179]
[1739289763701,0.02,96934.0,96933.0,1.7083179]
[1739289763895,0.02,96934.0,96933.0,0.2083179]
[1739289765099,0.3608,96950.0,96933.0,0.002]
[1739289765298,0.3608,96950.0,96940.0,0.3608]
[1739289765497,0.3608,96950.0,96941.0,0.0634]
[1739289765896,0.3608,96950.0,96949.0,0.2062838]
[1739289766493,0.3678,96950.0,96949.0,0.2062838]
[1739289767398,0.3678,96950.0,96949.0,0.2102838]
[1739289768101,0.3698,96950.0,96949.0,0.2062838]
[1739289768807,0.3628,96950.0,96949.0,0.2062838]
[1739289769008,0.3628,96950.0,96949.0,0.2072838]
[1739289769602,0.3658,96950.0,96949.0,0.2062838]
[1739289770306,0.3608,96950.0,96949.0,0.2062838]
[1739289770509,0.3658,96950.0,96949.0,0.2062838]
[1739289772103,0.3688,96950.0,96949.0,0.2062838]
[1739289772801,0.003,96950.0,96949.0,0.21739063]
[1739289773001,0.00015468,96959.0,96958.0,0.2062647]
[1739289773201,0.00015468,96959.0,96958.0,0.21737464]
[1739289776413,0.00115468,96959.0,96958.0,0.21818086]
[1739289777513,0.00115468,96959.0,96958.0,0.22925838]
[1739289778213,0.00115468,96959.0,96958.0,0.21834222]
[1739289778410,0.00115468,96959.0,96958.0,0.2072647]
[1739289779304,0.36195468,96959.0,96958.0,0.2072647]
[1739289781615,0.36195468,96959.0,96958.0,0.21834073]
[1739289782502,0.36195468,96959.0,96958.0,0.2072647]
[1739289790522,0.39335468,96959.0,96958.0,0.2072647]
[1739289791724,0.46467468,96959.0,96958.0,0.2072647]
[1739289794626,0.39335468,96959.0,96958.0,0.2072647]
[1739289794921,0.36195468,96959.0,96958.0,0.2072647]
[1739289795519,0.36195468,96959.0,96958.0,0.21859622]
[1739289795922,0.36195468,96959.0,96958.0,0.2072647]
[1739289796228,0.36195468,96959.0,96958.0,0.21859621]
[1739289796426,0.00115468,96959.0,96958.0,0.21859621]
[1739289796727,0.3608,96982.0,96958.0,0.21859621]
[1739289796728,0.0302,96987.0,96958.0,0.03064052]
[1739289797023,0.0302,96987.0,96986.0,0.2062051]
[1739289797224,0.07132,96994.0,96986.0,0.23584562]
[1739289797421,0.0302,96998.0,96987.0,0.02964052]
[1739289797622,0.3608,97016.0,96987.0,0.01133151]
[1739289797623,0.0316,97015.0,96987.0,0.01133151]
[1739289797819,0.24607855,96997.0,96987.0,0.04243151]
[1739289798131,0.21518339,96991.0,96990.0,0.2061966]
[1739289798327,0.21518339,96991.0,96990.0,0.21752811]
[1739289799421,0.21518339,96991.0,96990.0,0.21852811]
[1739289800629,0.21518339,96991.0,96990.0,0.21952811]
[1739289802330,0.00015468,96997.0,96996.0,0.2061839]
[1739289802532,0.00015468,96997.0,96996.0,0.21751541]
[1739289803824,0.00015468,96997.0,96996.0,0.21851541]
[1739289804127,0.36095468,96997.0,96996.0,0.21851541]
[1739289804527,0.36095468,96997.0,96996.0,0.2071839]
[1739289804924,0.36095468,96997.0,96996.0,0.2081839]
[1739289813440,0.36095468,96997.0,96996.0,0.21958986]
[1739289813633,0.391,97015.0,97014.0,0.2061456]
[1739289814036,0.3608,97015.0,97014.0,0.2061456]
[1739289814628,0.3608,97024.0,97023.0,0.2061265]
[1739289814833,0.36095468,97024.0,97023.0,0.2061265]
[1739289815836,0.01110802,97024.0,97023.0,0.2061265]
[1739289816437,0.01110802,97024.0,97023.0,0.2071265]
[1739289816438,0.37190802,97024.0,97023.0,0.2071265]
[1739289816840,0.44318802,97024.0,97023.0,0.2071265]
[1739289817031,0.44318802,97024.0,97023.0,0.2081265]
[1739289819548,0.44318802,97024.0,97023.0,0.002]
[1739289819948,0.43223468,97024.0,97023.0,0.002]
[1739289821141,0.43223468,97024.0,97014.0,0.2061453]
[1739289821441,0.3608,97015.0,97014.0,0.2061453]
[1739289822745,0.43208,97015.0,97014.0,0.2061453]
[1739289823140,0.43308,97015.0,97014.0,0.2071453]
[1739289823947,0.43308,97015.0,97014.0,0.2081453]
[1739289824444,0.07228,97015.0,97014.0,0.21936609]
[1739289824646,0.43308,97015.0,97014.0,0.21836609]
[1739289824853,0.43508,97015.0,97014.0,0.2081453]
[1739289825051,0.07428,97015.0,97014.0,0.21964526]
[1739289825748,0.43508,97015.0,97014.0,0.21964526]
[1739289826562,0.43508,97015.0,97014.0,0.2081453]
[1739289826754,0.43508,97015.0,97014.0,0.21968504]
[1739289827259,0.07428,97015.0,97014.0,0.21968504]
[1739289827756,0.43508,97015.0,97014.0,0.21968504]
[1739289827958,0.43508,97015.0,97014.0,0.2081453]
[1739289828656,0.43508,97015.0,97014.0,0.21959965]
[1739289829552,0.43508,97015.0,97014.0,0.2081453]
[1739289829760,0.43508,97015.0,97014.0,0.21946715]
[1739289831858,0.43508,97015.0,97014.0,0.21975733]
[1739289832759,0.43504,97015.0,97014.0,0.21975733]
[1739289832958,0.07424,97015.0,97014.0,0.21975733]
[1739289833159,0.07424,97015.0,97014.0,0.2358704]
[1739289833359,0.07424,97015.0,97014.0,0.23584601]
[1739289833560,0.43504,97015.0,97014.0,0.23584601]
[1739289833947,0.07424,97015.0,97014.0,0.23830292]
[1739289834558,0.07424,97015.0,97014.0,0.21973294]
[1739289834962,0.07424,97015.0,97014.0,0.23828039]
[1739289835356,0.07424,97015.0,97014.0,0.25439295]
[1739289835660,0.07424,97015.0,97014.0,0.25458475]
[1739289836260,0.07424,97015.0,97014.0,0.23847219]
[1739289838253,0.07424,97015.0,97014.0,0.23841987]
[1739289839361,0.43504,97015.0,97014.0,0.23852439]
[1739289839555,0.43504,97015.0,97014.0,0.23852438]
[1739289840155,0.43504,97015.0,97014.0,0.23853673]
[1739289840354,0.43504,97015.0,97014.0,0.25464957]
[1739289840959,0.43504,97015.0,97014.0,0.23853673]
[1739289841866,0.43504,97015.0,97014.0,0.03239143]
[1739289842160,0.43504,97015.0,96998.0,0.18513191]
[1739289842368,0.3608,96999.0,96998.0,0.18513191]
[1739289842558,0.43204,96999.0,96998.0,0.20390398]
[1739289842758,0.46334,96999.0,96998.0,0.20390398]
[1739289842963,0.46334,96999.0,96998.0,0.41008368]
[1739289843267,0.6695175,96999.0,96998.0,0.18613191]
[1739289843665,0.6695175,96999.0,96998.0,0.18713191]
[1739289844252,0.6715175,96999.0,96998.0,0.18713191]
[1739289845256,0.6715175,96999.0,96990.0,0.24592478]
[1739289845257,0.82614,96999.0,96990.0,0.24592478]
[1739289845566,0.2061967,96990.0,96989.0,0.0001546]
[1739289846161,0.2062136,96983.0,96972.0,0.2062347]
[1739289846471,0.3608,96973.0,96972.0,0.2062347]
[1739289846665,0.43204,96973.0,96972.0,0.2062347]
[1739289847262,0.43204,96973.0,96971.0,0.03]
[1739289847864,0.43204,96973.0,96969.0,0.2062403]
[1739289848065,0.43404,96973.0,96969.0,0.21714425]
[1739289849171,0.2062377,96971.0,96966.0,0.45217218]
[1739289849357,0.2062426,96969.0,96966.0,0.24592478]
[1739289850162,0.43404,96973.0,96968.0,0.2062425]
[1739289850471,0.43304,96973.0,96968.0,0.2062425]
[1739289850666,0.43204,96973.0,96968.0,0.2062425]
[1739289850867,0.206235,96972.0,96968.0,0.2062425]
[1739289851764,0.206235,96972.0,96969.0,0.2062407]
[1739289852474,0.206235,96972.0,96970.0,0.2062389]
[1739289853170,0.2062395,96970.0,96968.0,0.001]
[1739289853469,0.2062395,96970.0,96969.0,0.001]
[1739289853975,0.006,96972.0,96963.0,0.00015468]
[1739289853976,0.2062519,96964.0,96963.0,0.00015468]
[1739289854163,0.5670519,96964.0,96963.0,0.00015468]
[1739289856159,0.5700519,96964.0,96963.0,0.00115468]
[1739289856768,0.5730519,96964.0,96963.0,0.00215468]
[1739289858774,0.2062683,96957.0,96952.0,0.2062764]
[1739289859071,0.5670735,96954.0,96947.0,0.2373878]
[1739289859263,0.5670735,96954.0,96948.0,0.238585]
[1739289860058,0.5670735,96954.0,96952.0,0.001]
[1739289860265,0.5700735,96954.0,96952.0,0.001]
[1739289860663,0.5700735,96954.0,96948.0,0.238585]
[1739289860865,0.5730735,96954.0,96948.0,0.238585]
[1739289861265,0.58397753,96954.0,96948.0,0.238585]
[1739289861973,0.58397753,96954.0,96948.0,0.206285]
[1739289862167,0.206281,96951.0,96940.0,0.206301]
[1739289862362,0.32864319,96950.0,96934.0,0.0641]
[1739289862666,0.38070403,96954.0,96946.0,0.2062891]
[1739289862867,0.38070403,96954.0,96934.0,0.0641]
[1739289862868,0.37570403,96954.0,96948.0,0.2062858]
[1739289863066,0.37970403,96954.0,96948.0,0.2062858]
[1739289863266,0.37570403,96954.0,96949.0,0.2062828]
[1739289863468,0.001,96950.0,96949.0,0.2062828]
[1739289864063,0.37170403,96954.0,96949.0,0.2062828]
[1739289864269,0.2062904,96946.0,96934.0,0.0641]
[1739289864476,0.2062904,96946.0,96939.0,0.2063035]
[1739289864477,0.3608,96940.0,96939.0,0.2063035]
[1739289864776,0.43208,96940.0,96939.0,0.2063035]
[1739289867078,0.43308,96940.0,96939.0,0.2063035]
[1739289867465,0.43808,96940.0,96939.0,0.2073035]
[1739289867675,0.644383,96940.0,96939.0,0.001]
[1739289868180,0.65519912,96940.0,96939.0,0.001]
[1739289868368,0.44889612,96940.0,96939.0,0.2073052]
[1739289868882,0.45189612,96940.0,96939.0,0.2083052]
[1739289869076,0.45089612,96940.0,96939.0,0.2083052]
[1739289871783,0.37961612,96940.0,96939.0,0.2083052]
[1739289871983,0.45089612,96940.0,96939.0,0.2083052]
[1739289873184,0.44689612,96940.0,96939.0,0.2073052]
[1739289873385,0.45089612,96940.0,96939.0,0.2083052]
[1739289873782,0.44689612,96940.0,96939.0,0.2073052]
[1739289873987,0.45089612,96940.0,96939.0,0.2083052]
[1739289874576,0.44008,96940.0,96939.0,0.2083052]
[1739289875387,0.43608,96940.0,96939.0,0.2073052]
[1739289875583,0.07528,96940.0,96939.0,0.2073052]
[1739289875776,0.07928,96940.0,96939.0,0.2083052]
[1739289875980,0.07928,96940.0,96939.0,0.2073052]
[1739289876284,0.07928,96940.0,96939.0,0.2083052]
[1739289876586,0.07528,96940.0,96939.0,0.2073052]
[1739289876786,0.07928,96940.0,96939.0,0.2083052]
[1739289877686,0.008,96940.0,96939.0,0.2083052]
[1739289878086,0.07928,96940.0,96939.0,0.2083052]
[1739289878783,0.07528,96940.0,96939.0,0.2073052]
[1739289879097,0.07928,96940.0,96939.0,0.2083052]
[1739289879784,0.008,96940.0,96939.0,0.2083052]
[1739289879987,0.15339019,96959.0,96939.0,0.3628]
[1739289879988,0.3608,96954.0,96939.0,0.3628]
[1739289880189,0.07128,96950.0,96949.0,0.2062839]
[1739289880983,0.07128,96950.0,96939.0,0.002]
[1739289881189,0.3608,96944.0,96943.0,0.2062967]
[1739289882385,0.43208,96944.0,96943.0,0.2062967]
[1739289883490,0.43308,96944.0,96943.0,0.2082967]
[1739289884792,0.43308,96944.0,96943.0,0.2072967]
[1739289884988,0.43308,96944.0,96943.0,0.2082967]
[1739289885886,0.43308,96944.0,96943.0,0.2072967]
[1739289886793,0.43208,96944.0,96943.0,0.2062967]
[1739289886995,0.43308,96944.0,96943.0,0.2072967]
[1739289888180,0.43308,96944.0,96943.0,0.2082967]
[1739289888784,0.43308,96944.0,96943.0,0.2072967]
[1739289888985,0.43308,96944.0,96943.0,0.2082967]
[1739289892297,0.6393745,96944.0,96943.0,0.002]
[1739289892795,0.6393745,96944.0,96943.0,0.001]
[1739289892996,0.6393745,96944.0,96943.0,0.002]
[1739289893197,0.43308,96944.0,96943.0,0.002]
[1739289894695,0.3618,96944.0,96943.0,0.2082966]
[1739289894887,0.43208,96944.0,96943.0,0.2082966]
[1739289895092,0.43308,96944.0,96943.0,0.2082966]
[1739289896400,0.41196308,96944.0,96943.0,0.2082966]
[1739289896598,0.48320308,96944.0,96943.0,0.2082966]
[1739289897791,0.47820308,96944.0,96943.0,0.2082966]
[1739289899304,0.48320308,96944.0,96943.0,0.2082966]
[1739289899696,0.48320308,96944.0,96943.0,0.2072966]
[1739289899896,0.48320308,96944.0,96943.0,0.2082966]
[1739289900808,0.68949768,96944.0,96931.0,0.2063207]
[1739289901103,0.3608,96932.0,96917.0,0.0633]
[1739289901297,0.3608,96932.0,96930.0,0.2063231]
[1739289901504,0.0325,96931.0,96917.0,0.0633]
[1739289901695,0.3608,96918.0,96917.0,0.0633]
[1739289901890,0.3608,96918.0,96917.0,0.269652]
[1739289902695,0.3608,96918.0,96905.0,0.2169]
[1739289902696,0.3608,96918.0,96911.0,0.45228928]
[1739289902901,0.3608,96918.0,96911.0,0.24592478]
[1739289903507,0.3618,96918.0,96911.0,0.45228838]
[1739289903906,0.3638,96918.0,96913.0,0.2063603]
[1739289904597,0.3618,96918.0,96913.0,0.2063603]
[1739289905399,0.3648,96918.0,96913.0,0.2063603]
[1739289905594,0.3638,96918.0,96913.0,0.2063603]
[1739289906202,0.3648,96918.0,96913.0,0.2063603]
[1739289906802,0.3648,96918.0,96905.0,0.01102242]
[1739289907007,0.3648,96918.0,96916.0,0.2063521]
[1739289907306,0.3638,96918.0,96916.0,0.2063521]
[1739289907899,0.3618,96918.0,96916.0,0.2063521]
[1739289908095,0.3618,96918.0,96916.0,0.21725299]
[1739289908096,0.001,96918.0,96916.0,0.21725299]
[1739289908307,0.07128,96917.0,96916.0,0.21725299]
[1739289909212,0.003,96918.0,96916.0,0.21725299]
[1739289909405,0.002,96918.0,96916.0,0.21725299]
[1739289909711,0.001,96917.0,96916.0,0.21725299]
[1739289910112,0.002,96918.0,96916.0,0.21725299]
[1739289910407,0.005,96917.0,96916.0,0.21825299]
[1739289911006,0.001,96917.0,96916.0,0.21725299]
[1739289911207,0.005,96917.0,96916.0,0.21825299]